Cogmind - Beta 17.1 @@@ ROGUE MODE // 2026.09.20 @ 09:20:57 Player: osman sinnoks Result: Destroyed by Y-72 Warden with Railgun Performance ------------- Evolutions (8) 4000 Regions Visited (28) 5600 Robots Destroyed (226) 1130 Value Destroyed (13275) 13275 Prototype IDs (3) 60 Alien Tech Used (0) 0 Bonus (13788) 13788 TOTAL SCORE: 37853 Bonus ------- Triggered Max Security 1000 High Alert Combat Kills 604 Follower Combat Kills 3384 Entered Garrisons 2000 Used RIF Installer 6000 Aligned with FarCom 300 Scanned by Researcher 500 Cogmind --------- Core Integrity 0/1450 Matter 142/450 Energy 100/100 System Corruption 16% Temperature Cool (8) Movement Core (50) Location -2/Testing Parts ------- > --- POWER (1) -------- (None) > --- PROPULSION (4) --- (None) > --- UTILITY (14) ----- Large Matter Pod Advanced Target Analyzer > --- WEAPON (4) ------- (None) > --- INVENTORY (5) ---- Particle Reactor Improved Force Field Improved Force Field Enhanced Hardcell Cannon Enhanced Hardcell Cannon Peak State ------------ > --- POWER ------------ Particle Reactor > --- PROPULSION ------- Medium Treads Heavy Treads Advanced Medium Treads > --- UTILITY ---------- Advanced Heat Sink High-capacity Storage Unit Improved Targeting Computer Advanced Target Analyzer Experimental Core Analyzer EM Shield Advanced Force Field Relay Coupler [NC] Relay Coupler [C] Relay Coupler [C] Relay Coupler [Hunter] Relay Coupler [Hunter] > --- WEAPON ----------- Railgun Railgun Enhanced Hardcell Cannon Advanced Remote Datajack > --- INVENTORY -------- Light Antimatter Reactor Light Antimatter Reactor Heavy Treads Large Matter Pod Relay Coupler [NC] Relay Coupler [NC] Heavy Machine Gun Railgun Railgun Railgun Heavy Linear Accelerator Enhanced Hardcell Cannon Enhanced Hardcell Cannon Enhanced Hardcell Cannon Enhanced Hardcell Cannon Improved Remote Datajack Powered Hammer [Rating: 138] Favorites ----------- Power Light Angular Momentum Engine Engine Light Angular Momentum Engine Power Core Light Nuclear Core Reactor Particle Reactor Propulsion Medium Treads Treads Medium Treads Leg Carbon-fiber Leg Utility Improved Targeting Computer Device Advanced Heat Sink Storage High-capacity Storage Unit Processor Improved Targeting Computer Hackware Relay Coupler [NC] Protection Improved Medium Armor Plating Weapon KE Penetrator Ballistic Gun KE Penetrator Ballistic Cannon Enhanced Hardcell Cannon Launcher Grenade Launcher Special Weapon Improved Remote Datajack Impact Weapon Powered Hammer Build | -11 -10 -10 -10 -9 -8 -8 -7 -7 -7 -7 -6 -6 -6 -6 -5 -5 -5 -5 -5 -5 -4 -4 -3 -3 -3 -3 -2 -2 ------- Run | Yrd Mat Min Exi Min Mat Gar Fac Gar Fac Gar Fac Gar Fac Gar Fac Was Fac Gar Fac Gar Fac Gar Res Gar Res Gar Res Tes Slots Evolved 16 | . . . . . 4 . 2 . . . 2 . . . 2 . . . . . 2 . 2 . . . 2 . Power . | . . . . . . . . . . . . . . . . . . . . . . . . . . . . . Propulsion 2 | . . . . . 1 . . . . . . . . . . . . . . . 1 . . . . . . . Utility 12 | . . . . . 2 . 2 . . . 2 . . . 2 . . . . . 1 . 2 . . . 1 . Weapon 2 | . . . . . 1 . . . . . . . . . . . . . . . . . . . . . 1 . Parts Attached 197 | 7 8 2 2 1 7 11 4 11 5 7 5 6 5 23 4 . 1 15 . 10 3 12 1 9 9 12 12 5 Power 22 | 1 1 . . . 1 2 . 1 . 3 . 1 1 2 . . . 2 . 2 . 1 . 1 . 1 2 . Engine 8 | 1 1 . . . . 1 . . . 1 . 1 . 2 . . . . . 1 . . . . . . . . Core 8 | . . . . . 1 1 . 1 . 2 . . 1 . . . . 1 . 1 . . . . . . . . Reactor 6 | . . . . . . . . . . . . . . . . . . 1 . . . 1 . 1 . 1 2 . Propulsion 40 | 2 2 . 2 . 1 1 . 3 3 2 . 2 . 8 . . . . . 3 1 2 . . 3 1 2 2 Treads 21 | 2 2 . . . 1 1 . 3 . . . . . . . . . . . 3 1 2 . . 3 1 2 . Leg 19 | . . . 2 . . . . . 3 2 . 2 . 8 . . . . . . . . . . . . . 2 Wheel . | . . . . . . . . . . . . . . . . . . . . . . . . . . . . . Hover . | . . . . . . . . . . . . . . . . . . . . . . . . . . . . . Flight . | . . . . . . . . . . . . . . . . . . . . . . . . . . . . . Utility 78 | 2 2 1 . . 3 1 2 4 1 1 3 2 2 11 2 . 1 9 . 3 1 7 1 4 3 7 3 2 Device 11 | 1 . . . . . . . . . . . . . 4 . . . . . . . 2 . . . 2 2 . Storage 6 | 1 2 . . . . . . . 1 . . . . . . . 1 . . . . . . . . . 1 . Processor 8 | . . . . . 1 . 1 2 . . . 1 . 1 . . . . . . . 1 . . . 1 . . Hackware 35 | . . . . . 1 . . 1 . . 2 . 1 5 2 . . 7 . 2 1 2 1 4 . 4 . 2 Protection 18 | . . 1 . . 1 1 1 1 . 1 1 1 1 1 . . . 2 . 1 . 2 . . 3 . . . Artifact . | . . . . . . . . . . . . . . . . . . . . . . . . . . . . . Weapon 57 | 2 3 1 . 1 2 7 2 3 1 1 2 1 2 2 2 . . 4 . 2 1 2 . 4 3 3 5 1 Energy Gun . | . . . . . . . . . . . . . . . . . . . . . . . . . . . . . Energy Cannon . | . . . . . . . . . . . . . . . . . . . . . . . . . . . . . Ballistic Gun 36 | 2 3 1 . . 1 4 1 3 1 1 1 . 1 1 2 . . 4 . 1 1 1 . 3 3 . 1 . Ballistic Cannon 8 | . . . . . . 2 . . . . . 1 1 . . . . . . . . . . . . 1 3 . Launcher 2 | . . . . 1 1 . . . . . . . . . . . . . . . . . . . . . . . Special Weapon 9 | . . . . . . . . . . . 1 . . 1 . . . . . 1 . 1 . 1 . 2 1 1 Impact Weapon 2 | . . . . . . 1 1 . . . . . . . . . . . . . . . . . . . . . Slashing Weapon . | . . . . . . . . . . . . . . . . . . . . . . . . . . . . . Piercing Weapon . | . . . . . . . . . . . . . . . . . . . . . . . . . . . . . Special Melee Weapon . | . . . . . . . . . . . . . . . . . . . . . . . . . . . . . Unidentified Prototypes 3 | . . . 1 . . . . . . . . . . 1 . . . . . . . 1 . . . . . . Parts Lost 94 | . 2 2 . . 2 7 . 8 . 4 1 6 2 2 . . . 5 . 2 . 1 . . 6 11 14 19 Power 10 | . 1 . . . 1 2 . 1 . 1 . 1 . . . . . . . . . . . . . 1 1 1 Propulsion 18 | . . . . . . 1 . 1 . 1 . 2 . 1 . . . . . 2 . . . . 2 1 3 4 Utility 39 | . . 1 . . 1 1 . 3 . 2 . 2 1 1 . . . 3 . . . 1 . . 3 7 3 10 Weapon 27 | . 1 1 . . . 3 . 3 . . 1 1 1 . . . . 2 . . . . . . 1 2 7 4 Highest Loss Streak 19 | . 1 1 . . 1 4 . 4 . 2 1 2 2 1 . . . 4 . 1 . 1 . . 4 4 14 19 To Critical Strikes . | . . . . . . . . . . . . . . . . . . . . . . . . . . . . . Average Backups 15 | 2 9 12 12 12 14 14 14 13 18 19 16 18 19 18 18 19 18 19 19 17 17 16 15 16 14 15 14 14 Power 1 | . 1 1 1 1 . . . . . . . . 1 1 2 3 3 3 3 2 2 1 1 1 1 1 1 1 Propulsion 3 | 1 2 2 2 2 4 3 3 2 5 6 6 7 7 5 5 6 6 4 4 2 . 1 2 4 3 1 . 1 Utility 5 | . 3 5 5 5 4 5 6 7 9 9 6 6 7 5 4 4 4 7 7 7 8 7 5 5 5 3 3 4 Weapon 4 | . 1 4 4 4 5 4 5 4 3 2 3 3 3 5 5 6 5 4 3 4 5 5 5 4 4 7 6 6 Tool/Special . | . . . . . . . . . . . . . . . . . . . . . . . . . . . . . Unused Backups 58 | . 1 . . . 4 1 3 2 1 1 . 1 1 3 1 . . 6 3 7 2 5 . 4 2 . . 10 Power 6 | . 1 . . . . . . . . . . . . 1 . . . . . 1 . 1 . 1 . . . 1 Propulsion 16 | . . . . . 2 . 1 . . . . 1 1 2 . . . 2 2 1 . . . 1 2 . . 1 Utility 15 | . . . . . 1 . . 1 . 1 . . . . . . . 3 1 3 1 . . 1 . . . 3 Weapon 19 | . . . . . 1 1 2 1 1 . . . . . 1 . . 1 . 1 1 3 . 1 . . . 5 Tool/Special 2 | . . . . . . . . . . . . . . . . . . . . 1 . 1 . . . . . . Average Slot Usage (%) 92 | . 99 99 100 100 96 97 98 89 99 99 99 99 100 98 99 100 100 98 100 94 84 92 90 92 89 83 69 68 Engine 3 | . 13 14 14 14 8 4 . . . 1 6 5 1 1 5 5 5 . . 2 5 1 . . . . . . Core 1 | . . . . . . 3 7 2 7 5 . . 4 4 . . . 2 . . . . . . . . . . Reactor 1 | . . . . . . . . . . . . . . . . . . 1 5 1 . 3 4 4 4 3 3 3 Treads 11 | . 28 28 17 . 8 8 7 14 1 . . . . . . . . 15 17 16 14 15 14 14 13 13 6 6 Leg 7 | . . . 10 28 18 18 15 7 21 22 20 20 20 19 17 17 17 1 . . . . . . . . . . Device 4 | . 14 3 . . . . . . . . . . . 5 5 5 5 5 5 5 5 5 4 4 3 5 6 7 Storage 6 | . 14 14 14 14 9 9 7 7 7 7 6 6 6 6 5 5 5 5 5 5 5 5 4 4 4 4 6 7 Processor 12 | . . . . . 8 9 15 17 23 23 20 20 20 20 17 17 17 17 17 11 10 10 9 9 9 11 13 12 Hackware 16 | . . . . . 8 9 7 6 7 7 19 20 18 12 22 23 23 21 23 23 21 26 28 30 32 22 18 17 Protection 5 | . . 10 14 14 8 8 13 8 7 7 6 5 7 6 5 5 5 5 5 5 5 8 9 9 6 4 . . Ballistic Gun 12 | . 28 27 28 16 17 17 15 14 15 14 13 11 11 7 9 11 11 11 11 11 10 10 9 9 9 6 1 . Ballistic Cannon 1 | . . . . . . 2 . . . . . 1 6 5 1 . . . . . . . . . . 2 8 7 Special Weapon 2 | . . . . . . . . . . . 5 5 . 3 . 5 5 2 . 4 5 5 4 4 3 3 2 3 Impact Weapon 1 | . . . . . . 4 7 7 7 7 . . 1 1 5 . . 1 5 . . . . . . . . . Peak Build Rating 138 | 7 8 8 26 26 45 47 52 53 60 63 66 68 65 79 69 70 70 82 81 86 95 104 107 129 132 134 138 131 Average Rating 74 | 5 7 7 15 26 41 44 49 47 58 60 65 64 61 64 68 70 69 76 80 83 90 100 107 119 127 129 116 113 On Entrance 65 | . 7 8 8 26 26 45 47 52 53 60 55 66 60 61 63 68 70 70 81 81 81 95 102 107 129 132 127 123 Avg Prop Armor Cover (%) 6 | . . . . . 6 6 6 6 . . . . . . . . . . . . . 4 . . . . . 15 Naked Turns . | . . . . . . . . . . . . . . . . . . . . . . . . . . . . . Heaviest Build 118 | 14 30 32 32 33 35 39 40 42 62 65 70 71 71 73 68 65 65 75 73 88 84 91 86 91 116 118 105 102 Greatest Support 128 | 40 40 40 60 60 60 60 60 83 83 73 65 65 55 55 45 45 45 83 83 83 120 128 128 128 128 128 128 97 Greatest Overweight (x) 2 | . . . 1 . . . . . . 1 1 1 1 2 1 1 1 1 . 1 . . . . . 1 1 2 Average Overweight (x) . | . . . . . . . . . . . . . 1 1 1 1 1 . . . . . . . . . . . Largest Inventory Capacity 20 | 8 15 15 15 15 15 15 15 15 20 20 20 20 20 20 20 20 20 20 20 20 20 20 20 20 20 20 20 20 Average Capacity 18 | 7 13 15 15 15 15 15 15 15 19 20 20 20 20 20 20 20 20 20 20 20 20 20 20 20 20 20 20 18 Most Carried 20 | 5 15 14 13 13 15 15 15 15 20 20 18 20 20 20 20 20 20 20 20 20 20 20 19 20 20 20 20 18 Average Carried 17 | 3 9 12 12 12 14 14 14 13 18 19 16 18 19 19 19 20 19 19 19 19 19 19 18 19 18 17 14 14 Final Capacity 20 | 8 15 15 15 15 15 15 15 15 20 20 20 20 20 20 20 20 20 20 20 20 20 20 20 20 20 20 20 5 Final Carried 20 | 4 14 12 12 13 14 14 15 15 20 19 16 20 18 20 20 20 20 20 20 20 20 19 18 20 14 20 16 5 Class Distribution -------------------- 27% | Botlord-Tank 24% | Mutant 16% | Botlord-Gunner 7% | Bothacker-Gunner 5% | Scavenger-Gunner 4% | Scavenger-Mutant 3% | Bothacker-Mutant 3% | Botlord-Mutant Dominant Class ---------------- Mutant | -10/Materials Mutant | -10/Mines Mutant | -10/Exiles Mutant | -9/Mines Skirmisher | -8/Materials Mutant | -8/Garrison Scavenger-Mutant | -7/Factory Mutant | -7/Garrison Mutant | -7/Factory Mutant | -7/Garrison Gunner | -6/Factory Bothacker-Gunner | -6/Garrison Bothacker-Gunner | -6/Factory Scavenger-Gunner | -6/Garrison Bothacker-Mutant | -5/Factory Bothacker-Gunner | -5/Waste Bothacker-Gunner | -5/Factory Botlord-Gunner | -5/Garrison Botlord-Mutant | -5/Factory Botlord-Gunner | -5/Garrison Botlord-Tank | -4/Factory Botlord-Tank | -4/Garrison Botlord-Tank | -3/Research Botlord-Tank | -3/Garrison Botlord-Tank | -3/Research Botlord-Tank | -3/Garrison Botlord-Gunner | -2/Research Botlord-Tank | -2/Testing Resources | -11 -10 -10 -10 -9 -8 -8 -7 -7 -7 -7 -6 -6 -6 -6 -5 -5 -5 -5 -5 -5 -4 -4 -3 -3 -3 -3 -2 -2 ----------- Run | Yrd Mat Min Exi Min Mat Gar Fac Gar Fac Gar Fac Gar Fac Gar Fac Was Fac Gar Fac Gar Fac Gar Res Gar Res Gar Res Tes Matter Collected 7977 | 286 304 350 . 124 156 578 70 409 116 281 22 348 . 780 50 . . 706 . 482 212 293 16 313 613 913 555 . Remotely . | . . . . . . . . . . . . . . . . . . . . . . . . . . . . . Salvage Created 8654 | 36 714 151 . 113 225 521 55 458 205 394 . 491 . 493 . . . 770 . 549 341 363 . 243 921 920 691 . Parts 518 | 6 47 18 . 14 11 29 1 17 6 26 . 20 . 32 . . . 38 . 36 19 27 . 18 59 51 43 . Haulers Intercepted 3 | . 2 . . . . . . . . . . . . . . . . . . . . . . . 1 . . . Recyclers Shooed 3 | . . . . . . . . . . . . . . . . . . . . . 1 . . . . . 2 . Parts Field Recycled . | . . . . . . . . . . . . . . . . . . . . . . . . . . . . . Retrieved Matter . | . . . . . . . . . . . . . . . . . . . . . . . . . . . . . Parts Self-Destructed . | . . . . . . . . . . . . . . . . . . . . . . . . . . . . . Prevented . | . . . . . . . . . . . . . . . . . . . . . . . . . . . . . Parts Restored . | . . . . . . . . . . . . . . . . . . . . . . . . . . . . . Kills | -11 -10 -10 -10 -9 -8 -8 -7 -7 -7 -7 -6 -6 -6 -6 -5 -5 -5 -5 -5 -5 -4 -4 -3 -3 -3 -3 -2 -2 ------- Run | Yrd Mat Min Exi Min Mat Gar Fac Gar Fac Gar Fac Gar Fac Gar Fac Was Fac Gar Fac Gar Fac Gar Res Gar Res Gar Res Tes Combat Hostiles Destroyed 196 | . 11 9 . 10 6 18 . 16 1 11 . 10 . 14 . . . 14 . 12 9 9 . 4 10 17 15 . Guns 149 | . 10 9 . 1 2 11 . 15 1 11 . 7 . 7 . . . 14 . 12 9 9 . 4 10 14 3 . Cannons 32 | . . . . . . 7 . . . . . 3 . 7 . . . . . . . . . . . 3 12 . AOE 14 | . 1 . . 9 4 . . . . . . . . . . . . . . . . . . . . . . . Classes Destroyed 20 | 1 5 2 . . 1 . 1 1 1 1 . 1 . 2 . . . 1 . 2 . 1 . . . . . . Worker 5 | . 3 . . . . . . . 2 . . . . . . . . . . . . . . . . . . . Builder 2 | . . 1 . . 1 . . . . . . . . . . . . . . . . . . . . . . . Tunneler 5 | 2 1 . . . . . . . 1 . . . . . . . . . . . . . . . 1 . . . Hauler 3 | . 2 . . . . . . . . . . . . . . . . . . . . . . . 1 . . . Recycler 2 | . . . . . . . 1 . 1 . . . . . . . . . . . . . . . . . . . Operator 3 | . 2 . . . 1 . . . . . . . . . . . . . . . . . . . . . . . Watcher 6 | . 3 . . . . . . . 1 . . . . . . . . . . . . . . . 1 1 . . Swarmer 73 | . . 9 . 7 . 7 . 7 . 4 . 3 . . . . . 3 . 6 5 6 . . . 12 4 . Cutter 1 | . . . . . . . . . . . . 1 . . . . . . . . . . . . . . . . Saboteur 3 | . . . . . . . . . . . . . . 3 . . . . . . . . . . . . . . Grunt 53 | . 11 . . 3 5 7 . 7 . 3 . 3 . 3 . . . 6 . 1 . . . . 1 3 . . Brawler 1 | . . . . . . . . . . . . . . . . . . 1 . . . . . . . . . . Duelist 3 | . . . . . . . . . . 2 . . . . . . . . . . . . . . . 1 . . Sentry 15 | . . . . . 1 4 . 1 . . . 3 . 4 . . . . . . . . . . . . 2 . Specialist 3 | . . . . . . . . . . . . . . . . . . . . 1 . 2 . . . . . . Hunter 6 | . . . . . . . . 1 . . . . . . . . . 1 . . 2 . . . 1 . 1 . Programmer 34 | . . . . . . . . . 1 2 . . . 3 . . . 3 . 2 2 . . 4 7 2 8 . Heavy 1 | . . . . . . . . . . . . . . 1 . . . . . . . . . . . . . . Behemoth 3 | . . . . . . . . . . . . . . . . . . . . 1 . . . . 1 1 . . Executioner 1 | . . . . . . . . . . . . . . . . . . . . . . 1 . . . . . . Thug 2 | . . . . . . . . . . . . 1 . . . . . . . 1 . . . . . . . . Infiltrator 1 | . . . . . . . . . . . . . . . . . . . . . . . . . . . 1 . Best Kill Streak 10 | 2 6 3 . 5 3 10 1 6 4 4 . 3 . 3 . . . 3 . 5 4 5 . 2 6 5 7 . Combat Bots Only 10 | . 2 3 . 5 2 10 . 6 1 4 . 3 . 3 . . . 3 . 5 4 5 . 2 4 5 7 . Max Kills in Single Turn 4 | 1 4 1 . 2 2 2 1 1 1 1 . 2 . 2 . . . 2 . 2 1 1 . 1 2 1 1 . Gunslinging 1 | . . . . . . . . . . . . . . . . . . 1 . 1 . . . . . . . . Exploded 2 | . 1 . . 2 1 . . . . . . . . . . . . . . . . . . . . . . . Melee . | . . . . . . . . . . . . . . . . . . . . . . . . . . . . . Uniques/NPCs Destroyed . | . . . . . . . . . . . . . . . . . . . . . . . . . . . . . Combat | -11 -10 -10 -10 -9 -8 -8 -7 -7 -7 -7 -6 -6 -6 -6 -5 -5 -5 -5 -5 -5 -4 -4 -3 -3 -3 -3 -2 -2 -------- Run | Yrd Mat Min Exi Min Mat Gar Fac Gar Fac Gar Fac Gar Fac Gar Fac Was Fac Gar Fac Gar Fac Gar Res Gar Res Gar Res Tes Hostile Shots Fired 1768 | . 57 43 . 25 12 110 . 132 6 125 10 95 6 200 . . 2 100 . 75 31 68 2 13 107 157 144 248 Missed 521 | . 13 11 . 9 5 29 . 30 . 50 2 33 . 86 . . 1 28 . 18 6 17 1 4 26 36 42 74 Hits 1247 | . 44 32 . 16 7 81 . 102 6 75 8 62 6 114 . . 1 72 . 57 25 51 1 9 81 121 102 174 Melee 12 | . . . . . . . . . . 10 . . . 2 . . . . . . . . . . . . . . Projectile 1235 | . 44 32 . 16 7 81 . 102 6 65 8 62 6 112 . . 1 72 . 57 25 51 1 9 81 121 102 174 AOE 4 | . . . . . . . . . . . . 2 . . . . . . . . . . . . . . . 2 Critical Strikes 45 | . 1 . . . . 2 . 2 . 4 . 1 . 1 . . . 3 . . . . . 1 6 5 9 10 Part Disruptions 7 | . . . . . . . . . . . . . . . . . . . . . . 4 . . . . 2 1 Damage Taken 21604 | . 780 256 . 189 270 1033 196 1378 89 1345 238 802 353 1006 19 . 25 1267 . 1186 393 695 30 248 2157 2593 2175 2881 Core 3186 | . 171 32 . 27 16 67 . 148 16 178 38 105 16 125 . . 25 138 . 50 30 66 . . 150 337 259 1192 Absorbed by Shields 1735 | . . . . . . . . 20 . . . . . . . . . . . 23 . 23 . 14 . 185 221 1249 Ignored by Resistances 225 | . . . . . . . . . . . . . . . . . . . . . . . . . . . 141 84 Core Remaining (%) 67 | 100 . . . 8 . 84 . . . 51 . . . 66 . . . . . 78 . 91 . . . 62 . . Volleys Fired 664 | 4 76 17 . 12 18 39 . 45 5 28 3 31 2 42 1 5 2 58 . 43 21 20 2 21 48 75 42 4 Largest 4 | 2 2 2 . 2 3 3 . 2 2 2 1 3 1 3 2 1 1 3 . 3 2 2 1 2 3 2 4 2 Hottest 186 | 40 40 40 . 50 75 85 . 53 53 61 5 92 5 102 56 7 7 99 . 99 66 66 7 70 105 93 186 128 Shots Fired 1271 | 8 152 33 . 24 43 93 . 83 10 53 3 57 2 79 2 5 2 115 . 78 38 34 2 36 92 125 95 7 Gun 1049 | 8 152 33 . 15 36 74 . 83 10 53 . 46 . 44 2 . . 113 . 65 34 30 . 32 84 98 37 . Cannon 129 | . . . . . . 19 . . . . . 7 . 30 . . . . . . . . . . . 11 57 5 Launcher 16 | . . . . 9 7 . . . . . . . . . . . . . . . . . . . . . . . Special 77 | . . . . . . . . . . . 3 4 2 5 . 5 2 2 . 13 4 4 2 4 8 16 1 2 Kinetic 1178 | 8 152 33 . 15 36 93 . 83 10 53 . 53 . 74 2 . . 113 . 65 34 30 . 32 84 109 94 5 Thermal . | . . . . . . . . . . . . . . . . . . . . . . . . . . . . . Explosive 16 | . . . . 9 7 . . . . . . . . . . . . . . . . . . . . . . . Electromagnetic . | . . . . . . . . . . . . . . . . . . . . . . . . . . . . . Robot Hit Streak 18 | 6 9 5 . 6 5 8 . 9 4 10 2 11 1 9 1 6 8 9 . 15 9 14 1 5 18 9 12 14 Robot Miss Streak 8 | . 7 5 . 2 4 6 . 8 3 8 1 4 3 7 2 . . 7 . 4 4 2 1 1 3 5 6 . Penetration Max 1 | . . . . . . . . . . . . 1 . . . . . 1 . . 1 1 . 1 1 1 . . Secondary Targets 21 | . . 2 . . . . . 3 . 3 . . . . . . . 3 . 2 . 2 . 1 1 4 . . Max Gunslinging Chain 1 | . . 1 . . . . . 1 . 1 . . . . . . . 1 . 1 . 1 . 1 1 1 . . Shots Hit Robots 812 | 6 91 14 . 8 19 59 1 67 11 45 2 37 1 60 1 5 2 64 . 57 24 22 1 23 69 69 52 2 Core Hits 498 | 3 47 10 . 12 19 49 . 39 9 44 . 25 . 59 . . . 33 . 19 11 13 . 11 35 39 21 . Critical Kills 7 | . 1 . . . . . . 1 . . . . . . . . . 2 . . 1 1 . . . . 1 . Critical Parts Destroyed 14 | . . . . . 1 1 . 2 1 . . . . . . . . . . 2 2 2 . . 1 . 2 . Critical Strikes 31 | . 1 . . . 1 1 . 3 1 . . . . . . . . 2 . 2 3 4 . . 1 2 10 . Destroy 20 | . 1 . . . 1 1 . 2 . . . . . . . . . 2 . 2 3 4 . . 1 . 3 . Blast 9 | . . . . . . . . . . . . . . . . . . . . . . . . . . 2 7 . Smash 2 | . . . . . . . . 1 1 . . . . . . . . . . . . . . . . . . . Melee Attacks 57 | . . . . . . 5 1 12 3 20 . . 1 6 . . . 9 . . . . . . . . . . Impact 57 | . . . . . . 5 1 12 3 20 . . 1 6 . . . 9 . . . . . . . . . . Slashing . | . . . . . . . . . . . . . . . . . . . . . . . . . . . . . Piercing . | . . . . . . . . . . . . . . . . . . . . . . . . . . . . . Sneak Attacks 6 | . . . . . . . 1 2 3 . . . . . . . . . . . . . . . . . . . Combat Hostiles . | . . . . . . . . . . . . . . . . . . . . . . . . . . . . . Follow-up Attacks . | . . . . . . . . . . . . . . . . . . . . . . . . . . . . . Damage Inflicted 20237 | 64 1375 209 . 661 759 1080 63 1510 353 785 . 890 . 1232 . . . 1774 . 1140 600 649 . 589 2127 1852 2525 . Guns 15181 | 64 902 199 . 89 242 777 . 1325 153 785 . 762 . 691 . . . 1774 . 1140 600 649 . 589 2127 1651 662 . Cannons 3036 | . . . . . . 303 . . . . . 128 . 541 . . . . . . . . . . . 201 1863 . Explosions 1544 | . 467 . . 571 506 . . . . . . . . . . . . . . . . . . . . . . . Melee 448 | . . . . . . . 63 185 200 . . . . . . . . . . . . . . . . . . . Ramming 28 | . 6 10 . 1 11 . . . . . . . . . . . . . . . . . . . . . . . Kinetic 18217 | 64 902 199 . 89 242 1080 . 1325 153 785 . 890 . 1232 . . . 1774 . 1140 600 649 . 589 2127 1852 2525 . Thermal . | . . . . . . . . . . . . . . . . . . . . . . . . . . . . . Explosive 1499 | . 467 . . 571 461 . . . . . . . . . . . . . . . . . . . . . . . Electromagnetic 45 | . . . . . 45 . . . . . . . . . . . . . . . . . . . . . . . Impact 448 | . . . . . . . 63 185 200 . . . . . . . . . . . . . . . . . . . Slashing . | . . . . . . . . . . . . . . . . . . . . . . . . . . . . . Piercing . | . . . . . . . . . . . . . . . . . . . . . . . . . . . . . Highest Corruption 23 | . . . . . 1 1 . . . . . . . . . . . . . 3 . 7 . 4 22 23 3 16 Average Corruption 7 | . . . . . 1 1 . . . . . . . . . . . . . 2 . 6 . 1 9 22 2 4 Corruption Purged . | . . . . . . . . . . . . . . . . . . . . . . . . . . . . . Corruption Blocked 11 | . . . . . . . . . 2 1 . . . 3 . . . 5 . . . . . . . . . . Effects 149 | . . . . . . 6 . . . . . . . . . . . . . 17 . 8 . 10 24 65 13 6 Message Errors 45 | . . . . . . 3 . . . . . . . . . . . . . 5 . 2 . 3 6 21 5 . Matter Fused 29 | . . . . . . 2 . . . . . . . . . . . . . 1 . . . 5 4 13 1 3 Heat Flow Errors 17 | . . . . . . 1 . . . . . . . . . . . . . 1 . 3 . 1 1 7 1 2 Energy Discharges 11 | . . . . . . . . . . . . . . . . . . . . 2 . . . . 3 5 1 . Parts Rejected 3 | . . . . . . . . . . . . . . . . . . . . . . . . . 1 2 . . Parts Fused 1 | . . . . . . . . . . . . . . . . . . . . . . . . . . 1 . . Data Loss (minor) 19 | . . . . . . . . . . . . . . . . . . . . 5 . . . 1 3 8 2 . Data Loss (major) 5 | . . . . . . . . . . . . . . . . . . . . . . 1 . . 2 2 . . Misfires 8 | . . . . . . . . . . . . . . . . . . . . 2 . 2 . . . 1 2 1 Alerts 2 | . . . . . . . . . . . . . . . . . . . . 1 . . . . 1 . . . Weapon Failures 9 | . . . . . . . . . . . . . . . . . . . . . . . . . 3 5 1 . Overload Shots . | . . . . . . . . . . . . . . . . . . . . . . . . . . . . . Overflow Damage 496 | . 67 . . 1 6 . 33 46 160 . . . . 3 . . . . . . . . . . . 20 160 . Projectiles 151 | . . . . . . . . . . . . . . 3 . . . . . . . . . . . 20 128 . Explosions 106 | . 67 . . 1 6 . . . . . . . . . . . . . . . . . . . . . 32 . Melee 239 | . . . . . . . 33 46 160 . . . . . . . . . . . . . . . . . . . Knockbacks 29 | . . . . . . 8 1 . 1 . . . . 7 . . . . . . . . . . . 1 11 . Impact 2 | . . . . . . . 1 . 1 . . . . . . . . . . . . . . . . . . . Kinetic 27 | . . . . . . 8 . . . . . . . 7 . . . . . . . . . . . 1 11 . Secondary . | . . . . . . . . . . . . . . . . . . . . . . . . . . . . . Self-Inflicted Damage 493 | . 196 . . 42 172 . . . . . . . . . . . . . . . . . . . . . 83 . Shots 11 | . 2 . . 2 5 . . . . . . . . . . . . . . . . . . . . . 2 . Rammed 5 | . 2 3 . . . . . . . . . . . . . . . . . . . . . . . . . . Targets Rammed 7 | . 2 3 . 1 1 . . . . . . . . . . . . . . . . . . . . . . . Kicked 2 | . . . . 1 1 . . . . . . . . . . . . . . . . . . . . . . . Crushed . | . . . . . . . . . . . . . . . . . . . . . . . . . . . . . Highest Temperature 246 | . 25 . . 30 40 214 5 114 4 40 . 32 . 47 . . . 12 . 137 . 153 . 205 188 246 122 127 Average Temperature 46 | . 8 . . 18 16 98 5 48 2 5 . 11 . 21 . . . 6 . 43 . 81 . 116 58 65 25 37 Received Heat Transfer 2817 | . 348 . . 36 54 414 . 477 . 153 18 231 . 231 . . 9 183 . 93 . 4 . 9 75 164 33 285 Effects 1 | . . . . . . 1 . . . . . . . . . . . . . . . . . . . . . . Energy Bleed 1 | . . . . . . 1 . . . . . . . . . . . . . . . . . . . . . . Siege Activations . | . . . . . . . . . . . . . . . . . . . . . . . . . . . . . Martial Activations . | . . . . . . . . . . . . . . . . . . . . . . . . . . . . . Shielding Activations . | . . . . . . . . . . . . . . . . . . . . . . . . . . . . . Robots Disrupted . | . . . . . . . . . . . . . . . . . . . . . . . . . . . . . Combat Hostiles . | . . . . . . . . . . . . . . . . . . . . . . . . . . . . . Robots Corrupted 4 | . . . . . . . 1 1 2 . . . . . . . . . . . . . . . . . . . Combat Hostiles 1 | . . . . . . . . 1 . . . . . . . . . . . . . . . . . . . . Parts Fried 4 | . . . . . . . . 2 2 . . . . . . . . . . . . . . . . . . . Impact Corruptions 8 | . . . . . . . 1 1 6 . . . . . . . . . . . . . . . . . . . Robots Melted . | . . . . . . . . . . . . . . . . . . . . . . . . . . . . . Combat Hostiles . | . . . . . . . . . . . . . . . . . . . . . . . . . . . . . Parts Melted 1 | . . . . . . . . . . . . . . . . . . . . . . . . . 1 . . . Heat Transferred . | . . . . . . . . . . . . . . . . . . . . . . . . . . . . . Parts Sabotaged 4 | . . . . . . . . . . . . . . 4 . . . . . . . . . . . . . . Parts Stolen . | . . . . . . . . . . . . . . . . . . . . . . . . . . . . . Parts Stripped . | . . . . . . . . . . . . . . . . . . . . . . . . . . . . . Power Chain Reactions 3 | . . . . . 2 . . . . . . . . . . . . . . . . . . . . . 1 . Alert | -11 -10 -10 -10 -9 -8 -8 -7 -7 -7 -7 -6 -6 -6 -6 -5 -5 -5 -5 -5 -5 -4 -4 -3 -3 -3 -3 -2 -2 ------- Run | Yrd Mat Min Exi Min Mat Gar Fac Gar Fac Gar Fac Gar Fac Gar Fac Was Fac Gar Fac Gar Fac Gar Res Gar Res Gar Res Tes Maximum Alert Level 5 | . . . . 1 1 2 1 2 1 1 1 2 1 3 1 . . 2 1 2 1 3 2 3 2 2 1 5 Low Security (%) 35 | 100 100 100 . 53 95 32 47 21 60 52 79 11 . 10 . 100 100 59 . . 28 3 . . . 7 86 . Level 1 36 | . . . . 46 4 19 52 40 39 47 20 42 99 35 100 . . 19 100 34 71 50 . . 92 71 13 . Level 2 23 | . . . . . . 47 . 38 . . . 46 . 42 . . . 21 . 65 . 24 100 84 6 21 . . Level 3 3 | . . . . . . . . . . . . . . 11 . . . . . . . 22 . 15 . . . . Level 4 . | . . . . . . . . . . . . . . . . . . . . . . . . . . . . . Level 5 . | . . . . . . . . . . . . . . . . . . . . . . . . . . . . . High Security . | . . . . . . . . . . . . . . . . . . . . . . . . . . . . . Max Security 1 | . . . . . . . . . . . . . . . . . . . . . . . . . . . . 99 Peak Influence 1612 | 5 96 111 . 271 212 540 283 549 287 391 212 593 310 725 380 89 13 647 339 671 352 1077 693 753 423 481 270 1612 Initial 605 | . . 21 . . 97 137 283 82 287 91 194 134 310 133 380 89 13 . 339 202 352 169 605 519 423 181 270 24 Average 322 | 1 31 40 . 189 79 360 201 352 187 240 179 402 259 406 324 57 2 232 315 456 243 538 612 632 301 340 128 1523 Influence Increases 8965 | 10 424 230 . 441 305 513 5 547 57 320 98 579 1 672 57 . . 757 . 609 252 938 128 534 317 650 488 33 Destroy 0b10 Robot/C 4680 | . 220 180 . 280 140 420 . 320 20 220 20 320 . 340 . . . 440 . 280 180 260 40 220 200 325 255 . Destroy 0b10 Robot/NC 135 | 10 55 5 . . 10 . 5 . 25 . 5 . . . . . . . . . . . . . 15 5 . . Destroy Leader 568 | . 70 30 . 40 40 20 . 20 12 20 . 10 . 20 . . . 30 . 30 30 10 . 20 54 40 72 . Allied During Kill 720 | . . . . 48 26 6 . . . . 1 66 . 16 . . . 51 . 34 26 166 40 180 12 31 17 . Successful Hack 42 | . . . . . 18 12 . 12 . . . . . . . . . . . . . . . . . . . . Disable Machine 228 | . 45 . . 15 15 . . . . . 45 . . . 15 . . . . . . . 15 . 30 . 24 24 Anti-Garrison Action 1613 | . . . . . . . . 100 . . . 100 . 250 . . . 150 . 250 . 500 . 100 . 163 . . Destroy Structure 637 | . 19 . . 58 56 25 . 35 . 20 27 53 1 16 42 . . 86 . 15 16 2 18 14 6 11 108 9 Partial Spotted 30 | . . . . . . . . . . . . 15 . . . . . . . . . . . . . 15 . . Lose Combat Pursuer 312 | . 15 15 . . . 30 . 60 . 60 . 15 . 30 . . . . . . . . 15 . . 60 12 . Influence Decreases 9458 | 10 369 285 . 190 344 185 427 116 476 79 277 178 403 138 525 238 19 110 358 227 681 103 512 474 828 411 925 570 Entered New Map 4007 | . . 34 . . 154 75 257 36 262 39 177 58 283 58 345 168 6 . 308 87 319 73 472 174 330 61 211 20 Time Decay 2931 | 10 349 231 . 190 170 . 170 . 214 . 70 . 100 . 180 70 13 . 50 . 302 . 40 . 278 . 494 . Lost Part 940 | . 20 20 . . 20 70 . 80 . 40 10 60 20 20 . . . 50 . 20 . 10 . . 60 110 140 190 Lost Ally 1580 | . . . . . . 40 . . . . 20 60 . 60 . . . 60 . 120 60 20 . 300 160 240 80 360 Squads Dispatched 35 | . 5 . . . 3 . . . 2 . 1 . . . . . . . . . 2 . 2 . 3 . 4 13 Investigation 2 | . 2 . . . . . . . . . . . . . . . . . . . . . . . . . . . Extermination 7 | . . . . . . . . . 1 . . . . . . . . . . . 1 . . . 2 . 3 . Reinforcement 9 | . 3 . . . 2 . . . 1 . 1 . . . . . . . . . . . 1 . . . 1 . Assault 12 | . . . . . . . . . . . . . . . . . . . . . . . . . . . . 12 Garrison 5 | . . . . . 1 . . . . . . . . . . . . . . . 1 . 1 . 1 . . 1 Intercept . | . . . . . . . . . . . . . . . . . . . . . . . . . . . . . Searches Triggered . | . . . . . . . . . . . . . . . . . . . . . . . . . . . . . Construction Impeded 2 | . . . . . 1 . . . . . . . . . . . . . . . . . 1 . . . . . Haulers Reinforced . | . . . . . . . . . . . . . . . . . . . . . . . . . . . . . Active Scanning Responses . | . . . . . . . . . . . . . . . . . . . . . . . . . . . . . Cargo Convoy Interrupts . | . . . . . . . . . . . . . . . . . . . . . . . . . . . . . Alert ID Control Effect 55 | . . . . . . . . . . . . . . 6 2 . . 5 . 6 8 1 8 8 5 . 2 4 Stealth | -11 -10 -10 -10 -9 -8 -8 -7 -7 -7 -7 -6 -6 -6 -6 -5 -5 -5 -5 -5 -5 -4 -4 -3 -3 -3 -3 -2 -2 --------- Run | Yrd Mat Min Exi Min Mat Gar Fac Gar Fac Gar Fac Gar Fac Gar Fac Was Fac Gar Fac Gar Fac Gar Res Gar Res Gar Res Tes Distress Signals 6 | . 3 1 . . . . . . . . . . . . . . . . . . . . . . 2 . . . Communications Jammed 53 | . . . . . . . . . . . . . . . . . . . . . 20 . . . 3 . 10 20 Distress Signals 52 | . . . . . . . . . . . . . . . . . . . . . 20 . . . 2 . 10 20 Times Spotted 437 | . 24 10 . 12 13 22 . 18 3 22 3 19 1 26 3 3 2 29 . 21 14 17 7 20 24 38 27 59 Peak Tracking Total 34 | . 3 3 . 4 3 9 . 9 1 9 2 4 1 5 2 2 1 5 . 4 6 8 5 4 5 9 5 34 Tactical Retreats 14 | . 1 1 . . . 2 . 2 . 2 . 1 . 1 . . . . . . . . 1 . . 2 1 . Traps | -11 -10 -10 -10 -9 -8 -8 -7 -7 -7 -7 -6 -6 -6 -6 -5 -5 -5 -5 -5 -5 -4 -4 -3 -3 -3 -3 -2 -2 ------- Run | Yrd Mat Min Exi Min Mat Gar Fac Gar Fac Gar Fac Gar Fac Gar Fac Was Fac Gar Fac Gar Fac Gar Res Gar Res Gar Res Tes Traps Triggered 36 | . 2 . . . 1 2 1 2 1 . . 4 1 7 1 . . 3 1 5 . 3 . 1 . . 1 . Indirectly . | . . . . . . . . . . . . . . . . . . . . . . . . . . . . . Trap Hack Attempts . | . . . . . . . . . . . . . . . . . . . . . . . . . . . . . Triggered . | . . . . . . . . . . . . . . . . . . . . . . . . . . . . . Disarmed . | . . . . . . . . . . . . . . . . . . . . . . . . . . . . . Reprogrammed . | . . . . . . . . . . . . . . . . . . . . . . . . . . . . . Reused . | . . . . . . . . . . . . . . . . . . . . . . . . . . . . . Traps Extracted . | . . . . . . . . . . . . . . . . . . . . . . . . . . . . . Installed . | . . . . . . . . . . . . . . . . . . . . . . . . . . . . . Triggered . | . . . . . . . . . . . . . . . . . . . . . . . . . . . . . Machines | -11 -10 -10 -10 -9 -8 -8 -7 -7 -7 -7 -6 -6 -6 -6 -5 -5 -5 -5 -5 -5 -4 -4 -3 -3 -3 -3 -2 -2 ---------- Run | Yrd Mat Min Exi Min Mat Gar Fac Gar Fac Gar Fac Gar Fac Gar Fac Was Fac Gar Fac Gar Fac Gar Res Gar Res Gar Res Tes Machines Disabled 36 | . 3 . . 1 1 . . 2 . . 3 3 . 3 1 . . 3 . 3 . 2 1 2 2 2 2 2 Max in Single Turn 2 | . 2 . . 1 1 . . 1 . . . 2 . 1 . . . 1 . 1 . 1 . 1 1 1 1 1 Garrison Relay 18 | . . . . . . . . 2 . . . 1 . 3 . . . 3 . 3 . 2 . 2 . 2 . . Phase Generator 1 | . . . . . . . . . . . . 1 . . . . . . . . . . . . . . . . Machines Repaired . | . . . . . . . . . . . . . . . . . . . . . . . . . . . . . Machines Dismantled . | . . . . . . . . . . . . . . . . . . . . . . . . . . . . . Machines Sabotaged . | . . . . . . . . . . . . . . . . . . . . . . . . . . . . . Overloaded Fab Kills . | . . . . . . . . . . . . . . . . . . . . . . . . . . . . . Hacking | -11 -10 -10 -10 -9 -8 -8 -7 -7 -7 -7 -6 -6 -6 -6 -5 -5 -5 -5 -5 -5 -4 -4 -3 -3 -3 -3 -2 -2 --------- Run | Yrd Mat Min Exi Min Mat Gar Fac Gar Fac Gar Fac Gar Fac Gar Fac Was Fac Gar Fac Gar Fac Gar Res Gar Res Gar Res Tes Machines Accessed 20 | . . . 1 . 5 1 1 1 1 . 1 1 1 . . . 1 1 1 1 1 . 1 . 1 . . . Terminals 9 | . . . . . 4 1 . 1 . . . 1 . . . . . 1 . 1 . . . . . . . . Fabricators . | . . . . . . . . . . . . . . . . . . . . . . . . . . . . . Repair Stations . | . . . . . . . . . . . . . . . . . . . . . . . . . . . . . Recycling Units . | . . . . . . . . . . . . . . . . . . . . . . . . . . . . . Scanalyzers . | . . . . . . . . . . . . . . . . . . . . . . . . . . . . . Garrison Access 10 | . . . . . 1 . 1 . 1 . 1 . 1 . . . 1 . 1 . 1 . 1 . 1 . . . Total Hacks 29 | . . . 4 . 9 1 1 1 1 . 1 2 1 . . . 1 1 1 2 1 . 1 . 1 . . . Successful 24 | . . . 4 . 6 1 1 1 1 . 1 1 1 . . . 1 1 1 1 1 . 1 . 1 . . . Failed 5 | . . . . . 3 . . . . . . 1 . . . . . . . 1 . . . . . . . . Catastrophic 1 | . . . . . 1 . . . . . . . . . . . . . . . . . . . . . . . Database Lockouts . | . . . . . . . . . . . . . . . . . . . . . . . . . . . . . Manual 8 | . . . 1 . 7 . . . . . . . . . . . . . . . . . . . . . . . Terminals 15 | . . . . . 8 1 . 1 . . . 2 . . . . . 1 . 2 . . . . . . . . Fabricators . | . . . . . . . . . . . . . . . . . . . . . . . . . . . . . Repair Stations . | . . . . . . . . . . . . . . . . . . . . . . . . . . . . . Recycling Units . | . . . . . . . . . . . . . . . . . . . . . . . . . . . . . Scanalyzers . | . . . . . . . . . . . . . . . . . . . . . . . . . . . . . Garrison Access 10 | . . . . . 1 . 1 . 1 . 1 . 1 . . . 1 . 1 . 1 . 1 . 1 . . . Terminal Hacks 11 | . . . 4 . 2 1 . 1 . . . 1 . . . . . 1 . 1 . . . . . . . . Record 4 | . . . 4 . . . . . . . . . . . . . . . . . . . . . . . . . Open Door 2 | . . . . . . . . . . . . 1 . . . . . . . 1 . . . . . . . . Emergency Access Points 1 | . . . . . . . . . . . . . . . . . . 1 . . . . . . . . . . Garrison Index 1 | . . . . . 1 . . . . . . . . . . . . . . . . . . . . . . . Zone Layout 1 | . . . . . 1 . . . . . . . . . . . . . . . . . . . . . . . Garrison Registry 2 | . . . . . . 1 . 1 . . . . . . . . . . . . . . . . . . . . Fabricator Hacks . | . . . . . . . . . . . . . . . . . . . . . . . . . . . . . Repair Station Hacks . | . . . . . . . . . . . . . . . . . . . . . . . . . . . . . Recycling Unit Hacks . | . . . . . . . . . . . . . . . . . . . . . . . . . . . . . Scanalyzer . | . . . . . . . . . . . . . . . . . . . . . . . . . . . . . Garrison Access Hacks 10 | . . . . . 1 . 1 . 1 . 1 . 1 . . . 1 . 1 . 1 . 1 . 1 . . . Unlock Access 10 | . . . . . 1 . 1 . 1 . 1 . 1 . . . 1 . 1 . 1 . 1 . 1 . . . Unauthorized Hacks 3 | . . . . . 3 . . . . . . . . . . . . . . . . . . . . . . . Terminals 3 | . . . . . 3 . . . . . . . . . . . . . . . . . . . . . . . Botnet 3 | . . . . . 3 . . . . . . . . . . . . . . . . . . . . . . . Fabricators . | . . . . . . . . . . . . . . . . . . . . . . . . . . . . . Repair Stations . | . . . . . . . . . . . . . . . . . . . . . . . . . . . . . Recycling Units . | . . . . . . . . . . . . . . . . . . . . . . . . . . . . . Scanalyzers . | . . . . . . . . . . . . . . . . . . . . . . . . . . . . . Garrison Access . | . . . . . . . . . . . . . . . . . . . . . . . . . . . . . Data Cores Recovered . | . . . . . . . . . . . . . . . . . . . . . . . . . . . . . Used . | . . . . . . . . . . . . . . . . . . . . . . . . . . . . . Hacking Detections 10 | . . . . . 1 1 . 1 1 . 1 1 . . . . 1 . . . 1 . 1 . 1 . . . Full Trace Events . | . . . . . . . . . . . . . . . . . . . . . . . . . . . . . Feedback Events . | . . . . . . . . . . . . . . . . . . . . . . . . . . . . . Feedback Blocked . | . . . . . . . . . . . . . . . . . . . . . . . . . . . . . Robot Schematics Acquired . | . . . . . . . . . . . . . . . . . . . . . . . . . . . . . Robots Built . | . . . . . . . . . . . . . . . . . . . . . . . . . . . . . Authchips . | . . . . . . . . . . . . . . . . . . . . . . . . . . . . . Time . | . . . . . . . . . . . . . . . . . . . . . . . . . . . . . Total Robot Build Rating . | . . . . . . . . . . . . . . . . . . . . . . . . . . . . . Part Schematics Acquired . | . . . . . . . . . . . . . . . . . . . . . . . . . . . . . Parts Built . | . . . . . . . . . . . . . . . . . . . . . . . . . . . . . Authchips . | . . . . . . . . . . . . . . . . . . . . . . . . . . . . . Time . | . . . . . . . . . . . . . . . . . . . . . . . . . . . . . Total Part Build Rating . | . . . . . . . . . . . . . . . . . . . . . . . . . . . . . Part Studies Acquired . | . . . . . . . . . . . . . . . . . . . . . . . . . . . . . Parts Repaired . | . . . . . . . . . . . . . . . . . . . . . . . . . . . . . Time . | . . . . . . . . . . . . . . . . . . . . . . . . . . . . . Parts Recycled . | . . . . . . . . . . . . . . . . . . . . . . . . . . . . . Recycled Matter . | . . . . . . . . . . . . . . . . . . . . . . . . . . . . . Retrieved Matter . | . . . . . . . . . . . . . . . . . . . . . . . . . . . . . Retrieved Components . | . . . . . . . . . . . . . . . . . . . . . . . . . . . . . Parts Scanalyzed . | . . . . . . . . . . . . . . . . . . . . . . . . . . . . . Part Schematics Acquired . | . . . . . . . . . . . . . . . . . . . . . . . . . . . . . Parts Damaged . | . . . . . . . . . . . . . . . . . . . . . . . . . . . . . Bothacking | -11 -10 -10 -10 -9 -8 -8 -7 -7 -7 -7 -6 -6 -6 -6 -5 -5 -5 -5 -5 -5 -4 -4 -3 -3 -3 -3 -2 -2 ------------ Run | Yrd Mat Min Exi Min Mat Gar Fac Gar Fac Gar Fac Gar Fac Gar Fac Was Fac Gar Fac Gar Fac Gar Res Gar Res Gar Res Tes Used RIF Installer 12 | . . . . . . 2 . 1 . 1 . 1 . 1 . . . 1 . 1 . 1 . 1 . 2 . . Coupler Efficiency 1 | . . . . . . . . 1 . . . . . . . . . . . . . . . . . . . . Hotswap 1 | . . . . . . . . . . 1 . . . . . . . . . . . . . . . . . . Threat Obfuscator 1 | . . . . . . . . . . . . . . . . . . . . . . . . . . 1 . . Signal Jammer 1 | . . . . . . . . . . . . 1 . . . . . . . . . . . . . . . . Watcher Feeds 1 | . . . . . . . . . . . . . . . . . . . . . . . . . . 1 . . Alert ID Control 1 | . . . . . . . . . . . . . . 1 . . . . . . . . . . . . . . Structural Interface 1 | . . . . . . . . . . . . . . . . . . . . 1 . . . . . . . . Program Shield 1 | . . . . . . 1 . . . . . . . . . . . . . . . . . . . . . . Autooverride 1 | . . . . . . . . . . . . . . . . . . 1 . . . . . . . . . . Autoassimilate 1 | . . . . . . . . . . . . . . . . . . . . . . 1 . . . . . . Crosswire 1 | . . . . . . . . . . . . . . . . . . . . . . . . 1 . . . . Robots Hacked 94 | . . . . . . . . . . . 2 3 1 5 . 5 2 2 . 9 4 4 1 9 6 19 5 17 Non-combat 1 | . . . . . . . . . . . . . . . . . . . . . . . . . . 1 . . Combat 93 | . . . . . . . . . . . 2 3 1 5 . 5 2 2 . 9 4 4 1 9 6 18 5 17 Autooverrided 19 | . . . . . . . . . . . . . . . . . . . . 2 1 . . 3 1 5 3 4 Autoassimilated 23 | . . . . . . . . . . . . . . . . . . . . . . . . 3 1 5 2 12 Robot Hacks Applied 55 | . . . . . . . . . . . 2 3 1 5 . 5 2 2 . 8 3 4 1 3 4 11 . 1 parse_system 2 | . . . . . . . . . . . . . . . . . . . . . . . . . . 2 . . ignore_targets 5 | . . . . . . . . . . . . . . . . 5 . . . . . . . . . . . . overload_power 1 | . . . . . . . . . . . . . . . . . . . . . . . . . . 1 . . amplify_resonance 3 | . . . . . . . . . . . . . . . . . . . . 1 . 1 . . . 1 . . go_dormant 1 | . . . . . . . . . . . . 1 . . . . . . . . . . . . . . . . overwrite_iff 11 | . . . . . . . . . . . 1 . . 3 . . . . . 2 . . . . 1 4 . . formatsys_high 30 | . . . . . . . . . . . 1 2 1 2 . . 2 2 . 5 2 3 1 3 3 3 . . formatsys_deep 2 | . . . . . . . . . . . . . . . . . . . . . 1 . . . . . . 1 Relay Couplers Released 81 | . . . . . . . . 10 . . . 3 . 12 . . . 16 . 13 . 10 . 10 . 7 . . Machine Destruction 77 | . . . . . . . . 10 . . . 3 . 12 . . . 12 . 13 . 10 . 10 . 7 . . Programmers 4 | . . . . . . . . . . . . . . . . . . 4 . . . . . . . . . . Attached 33 | . . . . . . . . . . . 2 . 1 5 2 . . 7 . 2 1 2 1 4 . 4 . 2 Crosswired 9 | . . . . . . . . . . . . . . . . . . . . . . . . 7 . 2 . . Fabnet Peak Effective % . | . . . . . . . . . . . . . . . . . . . . . . . . . . . . . Robots Rewired 14 | . . . . . . . . . . . . 2 . . . . . . . 2 . 8 . 2 . . . . Allies Hacked 1 | . . . . . . . . . . . . . . . . . . 1 . . . . . . . . . . Hacks Repelled . | . . . . . . . . . . . . . . . . . . . . . . . . . . . . . Allies | -11 -10 -10 -10 -9 -8 -8 -7 -7 -7 -7 -6 -6 -6 -6 -5 -5 -5 -5 -5 -5 -4 -4 -3 -3 -3 -3 -2 -2 -------- Run | Yrd Mat Min Exi Min Mat Gar Fac Gar Fac Gar Fac Gar Fac Gar Fac Was Fac Gar Fac Gar Fac Gar Res Gar Res Gar Res Tes Total Allies 110 | . . 5 . . . . . . . . 2 4 1 5 . . 2 2 . 11 4 11 1 11 6 19 5 21 Largest Group 13 | . . 5 5 3 3 2 . . . . 2 4 1 2 1 . 2 3 1 5 3 12 13 12 5 2 3 6 Highest-Rated Group 761 | . . 78 78 40 40 32 . . . . 61 153 41 114 85 . 98 107 29 211 247 696 760 761 287 142 142 302 Highest-Rated Ally 142 | . . 31 31 16 16 16 . . . . 32 46 41 85 85 . 49 49 29 49 142 142 142 142 89 80 80 58 Total Orders . | . . . . . . . . . . . . . . . . . . . . . . . . . . . . . Ally Attacks 523 | . . . . 12 18 17 . . . . 5 29 . 23 6 . . 60 . 46 23 26 19 104 43 29 27 36 Total Damage 15623 | . . . . 137 202 223 . . . . 571 781 . 661 227 . . 1007 . 1193 991 721 1982 3151 1447 594 617 1118 Kills 102 | . . . . 4 2 3 . . . . 2 6 . 9 2 . . 13 . 8 8 5 12 15 5 . 4 4 Allies Corrupted 7 | . . . . . . . . . . . . 1 . 1 . . . . . . . . . 2 2 . . 1 Allies Melted 2 | . . . . . . . . . . . . . . . . . . . . 1 . 1 . . . . . . Intel | -11 -10 -10 -10 -9 -8 -8 -7 -7 -7 -7 -6 -6 -6 -6 -5 -5 -5 -5 -5 -5 -4 -4 -3 -3 -3 -3 -2 -2 ------- Run | Yrd Mat Min Exi Min Mat Gar Fac Gar Fac Gar Fac Gar Fac Gar Fac Was Fac Gar Fac Gar Fac Gar Res Gar Res Gar Res Tes Active Infowar (turns) 1207 | 25 1040 142 . . . . . . . . . . . . . . . . . . . . . . . . . . Seismic 1207 | 25 1040 142 . . . . . . . . . . . . . . . . . . . . . . . . . . Robot Analysis Total . | . . . . . . . . . . . . . . . . . . . . . . . . . . . . . Derelict Logs Recovered 2 | . . 1 . 1 . . . . . . . . . . . . . . . . . . . . . . . . Drone Launches . | . . . . . . . . . . . . . . . . . . . . . . . . . . . . . Drone Recoveries . | . . . . . . . . . . . . . . . . . . . . . . . . . . . . . Exploration | -11 -10 -10 -10 -9 -8 -8 -7 -7 -7 -7 -6 -6 -6 -6 -5 -5 -5 -5 -5 -5 -4 -4 -3 -3 -3 -3 -2 -2 ------------- Run | Yrd Mat Min Exi Min Mat Gar Fac Gar Fac Gar Fac Gar Fac Gar Fac Was Fac Gar Fac Gar Fac Gar Res Gar Res Gar Res Tes Turns Passed 17621 | 94 1040 604 304 392 349 552 346 897 451 423 159 937 202 1363 377 143 124 1142 112 1514 662 1176 91 738 601 1233 1313 282 Spaces Moved 8425 | 47 354 333 226 310 290 320 303 368 330 230 71 398 96 549 167 72 51 541 63 541 317 577 41 378 273 584 528 67 Core 8 | 8 . . . . . . . . . . . . . . . . . . . . . . . . . . . . Treads 4927 | 39 354 333 113 . . . . 210 16 . . . . . . . . 506 63 541 317 577 41 378 273 584 528 54 Legs 3490 | . . . 113 310 290 320 303 158 314 230 71 398 96 549 167 72 51 35 . . . . . . . . . 13 Wheels . | . . . . . . . . . . . . . . . . . . . . . . . . . . . . . Hover . | . . . . . . . . . . . . . . . . . . . . . . . . . . . . . Flight . | . . . . . . . . . . . . . . . . . . . . . . . . . . . . . Fastest Speed 45 | 50 160 160 45 90 90 90 90 90 120 115 126 126 193 190 190 190 190 163 163 163 163 160 160 160 155 155 155 190 Average Speed 159 | 141 160 160 124 90 90 90 90 130 122 120 191 196 193 192 190 190 190 164 163 234 163 161 160 160 159 155 210 239 Slowest Speed 260 | 160 160 160 170 90 90 90 90 163 163 185 196 200 193 260 190 190 190 190 163 246 163 163 160 160 160 232 245 260 Overloaded Moves 2 | . . . 2 . . . . . . . . . . . . . . . . . . . . . . . . . Propulsion Burnouts . | . . . . . . . . . . . . . . . . . . . . . . . . . . . . . Robots Hopped . | . . . . . . . . . . . . . . . . . . . . . . . . . . . . . Potential Cave-ins . | . . . . . . . . . . . . . . . . . . . . . . . . . . . . . Cave-ins Triggered . | . . . . . . . . . . . . . . . . . . . . . . . . . . . . . Exploration Rate (%) 34 | 3 72 74 61 49 25 52 12 52 12 35 2 53 3 49 5 68 2 60 3 60 8 73 3 58 10 58 15 22 Regions Visited 28 Branch Regions 4 Pre-discovered Areas 3 | . . 1 1 1 . . . . . . . . . . . . . . . . . . . . . . . . Known Exits Taken 11 | . . . . . 1 . 1 . 1 . 1 . 1 . . . 1 . 1 . 1 . 1 . 1 . 1 . Unknown Exits Taken 5 | 1 1 1 1 1 . . . . . . . . . . . . . . . . . . . . . . . . Scrap Searched 6 | . . 3 . 3 . . . . . . . . . . . . . . . . . . . . . . . . Spaces Dug 25 | . . . . . . . . . . 15 . . 1 3 . . . 3 . . . . . . . . . 3 Terrain Destroyed 324 | . 20 . . 81 59 . . . . 15 . 72 1 3 . . . 7 . . 5 1 . 1 2 20 34 3 Melee 22 | . . . . . . . . . . 15 . . 1 3 . . . 3 . . . . . . . . . . Projectile 65 | . . . . . . . . . . . . 2 . . . . . 4 . . 5 1 . 1 2 19 28 3 AOE 236 | . 20 . . 81 59 . . . . . . 70 . . . . . . . . . . . . . . 6 . Terrain Rammed . | . . . . . . . . . . . . . . . . . . . . . . . . . . . . . Walls Destroyed . | . . . . . . . . . . . . . . . . . . . . . . . . . . . . . Machines Disabled . | . . . . . . . . . . . . . . . . . . . . . . . . . . . . . Actions | -11 -10 -10 -10 -9 -8 -8 -7 -7 -7 -7 -6 -6 -6 -6 -5 -5 -5 -5 -5 -5 -4 -4 -3 -3 -3 -3 -2 -2 --------- Run | Yrd Mat Min Exi Min Mat Gar Fac Gar Fac Gar Fac Gar Fac Gar Fac Was Fac Gar Fac Gar Fac Gar Res Gar Res Gar Res Tes Total 11462 | 68 697 370 248 398 343 502 378 683 367 295 92 503 112 786 227 77 79 673 73 731 431 796 65 487 359 797 641 184 Wait 1388 | . 232 14 17 74 9 110 59 226 . 3 12 24 . 85 48 . 20 6 5 28 79 44 20 28 14 103 45 83 Move 8407 | 46 353 332 225 309 290 319 303 367 330 229 71 397 95 548 167 71 51 540 63 540 317 576 41 377 273 583 527 67 Hop . | . . . . . . . . . . . . . . . . . . . . . . . . . . . . . Pick Up 215 | 11 19 1 2 1 11 11 6 11 11 5 1 12 3 20 3 . 2 14 2 9 6 5 1 8 6 20 12 2 Fast Attach 27 | . . . . . 2 1 . 1 . . . 1 . 4 . . . 2 . 4 . 6 . 4 2 . . . Attach 107 | 7 2 2 2 . 4 6 2 8 3 5 4 5 2 7 2 . . 3 . 1 2 1 1 . 6 13 14 5 Detach 2 | . . . . . . . . . . . . . . . . . . . . . . . . 2 . . . . Swap 97 | . 6 . . 1 2 6 2 2 2 2 1 2 5 17 3 1 1 16 . 8 1 8 . 5 3 2 1 . Drop 152 | . 7 1 2 . 6 5 5 5 8 3 . 3 4 22 3 . 3 15 3 16 5 15 . 12 7 1 . 1 Fire 664 | 4 76 17 . 12 18 39 . 45 5 28 3 31 2 42 1 5 2 58 . 43 21 20 2 21 48 75 42 4 Melee 57 | . . . . . . 5 1 12 3 20 . . 1 6 . . . 9 . . . . . . . . . . Ram . | . . . . . . . . . . . . . . . . . . . . . . . . . . . . . Kick 2 | . . . . 1 1 . . . . . . . . . . . . . . . . . . . . . . . Crush 5 | . 2 3 . . . . . . . . . . . . . . . . . . . . . . . . . . Escape Stasis 107 | . . . . . . . . 6 5 . . 20 . 35 . . . 10 . 9 . . . . . . . 22 Rewire 232 | . . . . . . . . . . . . 8 . . . . . . . 73 . 121 . 30 . . . . Trap . | . . . . . . . . . . . . . . . . . . . . . . . . . . . . . Miscellaneous . | . . . . . . . . . . . . . . . . . . . . . . . . . . . . . Route ------- -11/Scrapyard -10/Materials (discovered 2 exits: [*Mat] / [*Min]) -10/Mines (discovered 2 exits: [*Mat] / *Exi) -10/Exiles -9/Mines -8/Materials -8/Garrison (discovered 3 exits: *Fac x3) -7/Factory (discovered 2 exits: *Fac / Gar) -7/Garrison (discovered 3 exits: *Fac x3) -7/Factory -7/Garrison -6/Factory (discovered 2 exits: [*Fac] / Gar) -6/Garrison -6/Factory -6/Garrison -5/Factory -5/Waste -5/Factory -5/Garrison (discovered 2 exits: *Fac x2) -5/Factory -5/Garrison (discovered 2 exits: *Fac x2) -4/Factory -4/Garrison (discovered 2 exits: *Res x2) -3/Research -3/Garrison -3/Research (discovered 2 exits: *Qua / Gar) -3/Garrison (discovered 2 exits: [*Res x2]) -2/Research -2/Testing History --------- Turn | Location | Event 5 | -11/Scrapyard | Discovered new exit (range 15) 95 | -11/Scrapyard | Entered Materials 317 | -10/Materials | Build established: Mutant 701 | -10/Materials | Core integrity fell below 50% 765 | -10/Materials | Discovered new exit (range 16) 1102 | -10/Materials | Discovered new exit (range 9) 1135 | -10/Materials | Entered Mines 1177 | -10/Mines | Discovered new exit (range 9) 1366 | -10/Mines | Core integrity fell below 20% 1404 | -10/Mines | Assisted by bots powering up and referring to "LRC-V3" 1602 | -10/Mines | Learned location of Storage (-9) 1721 | -10/Mines | Deemed a non-threat by the Exiles lab entrance 1721 | -10/Mines | Discovered new exit (range 5) 1739 | -10/Mines | Entered Exiles 1739 | -10/Exiles | Accompanied by 5 allies 1769 | -10/Exiles | Led the pair of lost Derelicts to a safe place 1779 | -10/Exiles | Met 8R-AWN 1807 | -10/Exiles | Met EX-HEX 1855 | -10/Exiles | Met EX-BIN 1875 | -10/Exiles | Aligned with FarCom system 1877 | -10/Exiles | Given EX-Vault access code 1915 | -10/Exiles | Opened EX-Vault 1921 | -10/Exiles | Found Prototype Leg 1922 | -10/Exiles | Identified Potential Leg 1925 | -10/Exiles | Found Potential Leg 1944 | -10/Exiles | Warned to stay clear of 0b10 Research branches 1970 | -10/Exiles | Met EX-DEC 1985 | -10/Exiles | Learned location of Zion (-7) 2014 | -10/Exiles | Discovered new exit (range 14) 2043 | -10/Exiles | Left Exiles lab with Potential Leg 2043 | -10/Exiles | Entered Mines 2043 | -9/Mines | Accompanied by 3 allies 2097 | -9/Mines | Met a Derelict bent on vengeance 2155 | -9/Mines | Learned Materials terminal intel 2411 | -9/Mines | Found a hidden stash of uninstalled traps 2417 | -9/Mines | Discovered new exit (range 5) 2435 | -9/Mines | Entered Materials 2435 | -8/Materials | Accompanied by 3 allies 2435 | -8/Materials | Evolved 4 slots: Propulsion x1, Utility x2, Weapon x1 2436 | -8/Materials | Loaded intel: 12 terminal locations 2682 | -8/Materials | Garrison activated, responded to threat 2731 | -8/Materials | Build established: Skirmisher 2784 | -8/Materials | Identified exit to Garrison 2784 | -8/Materials | Entered Garrison 2784 | -8/Garrison | Accompanied by 2 allies 2816 | -8/Garrison | Triggered checkpoint 2820 | -8/Garrison | Discovered new exit (range 58) 2820 | -8/Garrison | Discovered new exit (range 69) 2820 | -8/Garrison | Discovered new exit (range 25) 2902 | -8/Garrison | Triggered checkpoint 2967 | -8/Garrison | Triggered checkpoint 3039 | -8/Garrison | Lost 4 parts (1p1u2w) 3040 | -8/Garrison | Destroyed 10 combat bots 3074 | -8/Garrison | Triggered checkpoint 3175 | -8/Garrison | Installed Relay Interface Framework 3270 | -8/Garrison | Expanded RIF knowledge: Program Shield 3304 | -8/Garrison | Triggered checkpoint 3336 | -8/Garrison | Entered Factory 3336 | -7/Factory | Evolved 2 slots: Utility x2 3337 | -7/Factory | Discovered new exit (range 8) 3682 | -7/Factory | Identified exit to Garrison 3682 | -7/Factory | Entered Garrison 3690 | -7/Garrison | Discovered new exit (range 61) 3690 | -7/Garrison | Discovered new exit (range 53) 3690 | -7/Garrison | Discovered new exit (range 92) 3698 | -7/Garrison | Build established: Scavenger-Mutant 3712 | -7/Garrison | Expanded RIF knowledge: Coupler Efficiency 3737 | -7/Garrison | Garrison Relay disabled 3988 | -7/Garrison | Triggered checkpoint 4051 | -7/Garrison | Lost 4 parts (1n1u2w) 4165 | -7/Garrison | Build established: Mutant 4168 | -7/Garrison | Triggered checkpoint 4244 | -7/Garrison | Garrison Relay disabled 4422 | -7/Garrison | Triggered checkpoint 4579 | -7/Garrison | Entered Factory 5030 | -7/Factory | Identified exit to Garrison 5030 | -7/Factory | Entered Garrison 5244 | -7/Garrison | Triggered checkpoint 5319 | -7/Garrison | Expanded RIF knowledge: Hotswap 5350 | -7/Garrison | Triggered checkpoint 5436 | -7/Garrison | Discovered new exit (range 14) 5453 | -7/Garrison | Entered Factory 5453 | -6/Factory | Evolved 2 slots: Utility x2 5561 | -6/Factory | Discovered new exit (range 12) 5612 | -6/Factory | Identified exit to Garrison 5612 | -6/Factory | Entered Garrison 5612 | -6/Garrison | Accompanied by 1 ally 5664 | -6/Garrison | Triggered checkpoint 5716 | -6/Garrison | Garrison Relay disabled 5741 | -6/Garrison | Build established: Gunner 5874 | -6/Garrison | Phase Generator disabled 6116 | -6/Garrison | Triggered checkpoint 6236 | -6/Garrison | Build established: Bothacker-Gunner 6263 | -6/Garrison | Triggered checkpoint 6331 | -6/Garrison | Expanded RIF knowledge: Signal Jamming 6414 | -6/Garrison | Triggered checkpoint 6535 | -6/Garrison | Discovered new exit (range 8) 6549 | -6/Garrison | Entered Factory 6749 | -6/Factory | Identified exit to Garrison 6751 | -6/Factory | Entered Garrison 6751 | -6/Garrison | Accompanied by 1 ally 6851 | -6/Garrison | Triggered checkpoint 6898 | -6/Garrison | Garrison Relay disabled 6914 | -6/Garrison | Heavy support dispatched to Factory 6987 | -6/Garrison | Found Prototype Device 6987 | -6/Garrison | Identified Active Sensor Suite 6990 | -6/Garrison | Heavy support dispatched to Factory 7270 | -6/Garrison | Spotted B-75 Beast 7291 | -6/Garrison | Assimilated Beast 5a with formatsys_high 7377 | -6/Garrison | Triggered checkpoint 7377 | -6/Garrison | Triggered checkpoint 7475 | -6/Garrison | Expanded RIF knowledge: Alert ID Control 7541 | -6/Garrison | Build established: Scavenger-Gunner 7600 | -6/Garrison | Discovered new exit (range 15) 7893 | -6/Garrison | Garrison Relay disabled 7923 | -6/Garrison | Garrison Relay disabled 8114 | -6/Garrison | Entered Factory 8114 | -5/Factory | Accompanied by 1 ally 8114 | -5/Factory | Evolved 2 slots: Utility x2 8212 | -5/Factory | Build established: Bothacker-Mutant 8491 | -5/Factory | Sucked down chute 8491 | -5/Factory | Entered Waste 8511 | -5/Waste | Spotted C-40 Crusher 8530 | -5/Waste | Spotted C-40 Crusher 8545 | -5/Waste | Spotted C-40 Crusher 8580 | -5/Waste | Spotted C-40 Crusher 8591 | -5/Waste | Spotted C-40 Crusher 8617 | -5/Waste | Discovered new exit (range 10) 8634 | -5/Waste | Entered Factory 8758 | -5/Factory | Identified exit to Garrison 8758 | -5/Factory | Entered Garrison 8758 | -5/Garrison | Accompanied by 2 allies 8785 | -5/Garrison | Build established: Bothacker-Gunner 8806 | -5/Garrison | Triggered checkpoint 8831 | -5/Garrison | Garrison Relay disabled 9044 | -5/Garrison | Triggered checkpoint 9094 | -5/Garrison | Triggered checkpoint 9140 | -5/Garrison | Build established: Botlord-Gunner 9196 | -5/Garrison | Discovered new exit (range 10) 9222 | -5/Garrison | Triggered checkpoint 9253 | -5/Garrison | Garrison Relay disabled 9510 | -5/Garrison | Triggered checkpoint 9532 | -5/Garrison | Lost 4 parts (2u2w) 9655 | -5/Garrison | Garrison Relay disabled 9702 | -5/Garrison | Discovered new exit (range 13) 9728 | -5/Garrison | Expanded RIF knowledge: Autooverride 9900 | -5/Garrison | Entered Factory 9900 | -5/Factory | Accompanied by 1 ally 9969 | -5/Factory | Allied Derelicts emerged from ambush trap array 10012 | -5/Factory | Identified exit to Garrison 10012 | -5/Factory | Entered Garrison 10012 | -5/Garrison | Accompanied by 1 ally 10186 | -5/Garrison | Triggered checkpoint 10192 | -5/Garrison | Garrison Relay disabled 10391 | -5/Garrison | Triggered checkpoint 10419 | -5/Garrison | Spotted B-75 Beast 10422 | -5/Garrison | Lost 3 allies 10430 | -5/Garrison | Triggered checkpoint 10450 | -5/Garrison | Destroyed B-75 Beast 10493 | -5/Garrison | P-70 Sage assimilated allied V4-WDI(g) 10604 | -5/Garrison | Triggered checkpoint 10683 | -5/Garrison | Discovered new exit (range 12) 10768 | -5/Garrison | Triggered checkpoint 10857 | -5/Garrison | Garrison Relay disabled 11020 | -5/Garrison | Spotted B-86 Titan 11304 | -5/Garrison | Triggered checkpoint 11355 | -5/Garrison | Expanded RIF knowledge: Structural Interface 11375 | -5/Garrison | Garrison Relay disabled 11501 | -5/Garrison | Discovered new exit (range 10) 11526 | -5/Garrison | Entered Factory 11526 | -4/Factory | Accompanied by 2 allies 11526 | -4/Factory | Evolved 2 slots: Propulsion x1, Utility x1 11833 | -4/Factory | Build established: Botlord-Tank 12019 | -4/Factory | Garrison activated, responded to threat 12045 | -4/Factory | Assimilated ARC 7a with formatsys_deep 12188 | -4/Factory | Identified exit to Garrison 12188 | -4/Factory | Entered Garrison 12188 | -4/Garrison | Warlord forces raided the area 12188 | -4/Garrison | Accompanied by 2 allies 12236 | -4/Garrison | Expanded RIF knowledge: Autoassimilate 12390 | -4/Garrison | Triggered checkpoint 12440 | -4/Garrison | Triggered checkpoint 12449 | -4/Garrison | Spotted Executioner 12456 | -4/Garrison | Triggered checkpoint 12464 | -4/Garrison | Destroyed Executioner 12474 | -4/Garrison | Found Prototype Processor 12474 | -4/Garrison | Identified Exp. Core Analyzer 12488 | -4/Garrison | Warlord forces retreated 12489 | -4/Garrison | Rewired Striker 12490 | -4/Garrison | Triggered checkpoint 12506 | -4/Garrison | Garrison Relay disabled 12812 | -4/Garrison | Triggered checkpoint 12836 | -4/Garrison | Garrison Relay disabled 12883 | -4/Garrison | Discovered new exit (range 5) 13040 | -4/Garrison | Discovered new exit (range 9) 13364 | -4/Garrison | Entered Research 13364 | -3/Research | Accompanied by 12 allies 13364 | -3/Research | Evolved 2 slots: Utility x2 13425 | -3/Research | Garrison activated, responded to threat 13443 | -3/Research | Identified exit to Garrison 13455 | -3/Research | Entered Garrison 13455 | -3/Garrison | Accompanied by 11 allies 13516 | -3/Garrison | Expanded RIF knowledge: Crosswire 13596 | -3/Garrison | Rewired Striker 13611 | -3/Garrison | Rewired Striker 13662 | -3/Garrison | Triggered checkpoint 13683 | -3/Garrison | Triggered checkpoint 13702 | -3/Garrison | Garrison Relay disabled 13707 | -3/Garrison | Lost 5 allies 13885 | -3/Garrison | Spotted B-86 Titan 13893 | -3/Garrison | Triggered checkpoint 13894 | -3/Garrison | Triggered checkpoint 13902 | -3/Garrison | Allies destroyed B-86 Titan 13994 | -3/Garrison | Discovered new exit (range 13) 14075 | -3/Garrison | Garrison Relay disabled 14087 | -3/Garrison | Triggered checkpoint 14193 | -3/Garrison | Entered Research 14193 | -3/Research | Accompanied by 4 allies 14280 | -3/Research | Spotted B-86 Titan 14290 | -3/Research | Allies destroyed B-86 Titan 14320 | -3/Research | Lost 4 allies 14402 | -3/Research | System corruption reached 10% 14513 | -3/Research | Discovered new exit (range 9) 14545 | -3/Research | Identified exit to Quarantine 14641 | -3/Research | Spotted B-86 Titan 14678 | -3/Research | Destroyed B-86 Titan 14678 | -3/Research | Garrison activated, responded to threat 14768 | -3/Research | Lost 4 parts (2n1u1w) 14794 | -3/Research | Identified exit to Garrison 14794 | -3/Research | Entered Garrison 14840 | -3/Garrison | Expanded RIF knowledge: Watcher Feeds 14870 | -3/Garrison | Triggered checkpoint 14920 | -3/Garrison | Lost 3 parts (1n1u1w) 14921 | -3/Garrison | Garrison Relay disabled 15024 | -3/Garrison | Triggered checkpoint 15148 | -3/Garrison | Spotted B-86 Titan 15158 | -3/Garrison | Triggered checkpoint 15160 | -3/Garrison | Triggered checkpoint 15237 | -3/Garrison | Destroyed B-86 Titan 15249 | -3/Garrison | Lost 7 allies 15277 | -3/Garrison | Lost 4 parts (3u1w) 15450 | -3/Garrison | Triggered checkpoint 15509 | -3/Garrison | Lost 3 allies 15555 | -3/Garrison | Discovered new exit (range 2) 15559 | -3/Garrison | Spotted B-90 Cyclops 15772 | -3/Garrison | Expanded RIF knowledge: Threat Obfuscation 15784 | -3/Garrison | Triggered checkpoint 15829 | -3/Garrison | Garrison Relay disabled 15993 | -3/Garrison | Found embedded Infiltrators 15999 | -3/Garrison | Discovered new exit (range 14) 16027 | -3/Garrison | Entered Research 16027 | -2/Research | Accompanied by 2 allies 16027 | -2/Research | Evolved 2 slots: Utility x1, Weapon x1 16091 | -2/Research | Lost 3 allies 16095 | -2/Research | Build established: Botlord-Gunner 16208 | -2/Research | Discovered new exit (range 6) 16288 | -2/Research | P-80 Master assimilated allied QY-GSJ(x) 16393 | -2/Research | Destroyed 7 combat bots 16400 | -2/Research | Lost 14 parts (1p3n3u7w) 17132 | -2/Research | Spotted B-90 Cyclops 17226 | -2/Research | Build established: Botlord-Tank 17337 | -2/Research | Identified exit to Testing 17340 | -2/Research | Entered Testing 17341 | -2/Testing | Maximum security lockdown engaged 17512 | -2/Testing | Assimilated Heavy ARC 9a with formatsys_deep 17531 | -2/Testing | Garrison activated, responded to threat 17560 | -2/Testing | Spotted Executioner 17593 | -2/Testing | System corruption reached 10% 17600 | -2/Testing | Scanned by Researcher 17602 | -2/Testing | Spotted Investigator 17603 | -2/Testing | Spotted Striker 17612 | -2/Testing | Core integrity fell below 50% 17620 | -2/Testing | Core integrity fell below 20% 17622 | -2/Testing | Destroyed by Y-72 Warden with Railgun Last Messages --------------- 17614_ Stasis bubble strength at 116. 17614_ I-47 Archangel distress signal jammed. 17615_ P-80 Master knocked back. 17615_ Relay Coupler [NC] destroyed. 17615_ Stasis bubble strength at 110. 17615_ M-36 Artificer repairs G-73 Enforcer. 17616_ Stasis bubble strength at 104. 17616_ Slug penetrates Wall. 17616_ Imp. Targeting Computer destroyed. 17617_ Stasis bubble strength at 98. 17618_ Stasis bubble strength at 92. 17619_ Stasis bubble strength at 86. 17619_ Relay Coupler [C] destroyed. 17619_ Critical hit (Burn: +18). 17620_ Stasis bubble strength at 80. 17620_ Slug penetrates M-36 Artificer. 17620_ Slug penetrates Wall. 17621_ Stasis bubble strength at 74. 17622_ M-36 Artificer repairs P-80 Master. 17622_ Stasis bubble strength at 68. Map ----- +----------------------------------------------------+ | ????# #????????#### #??????????????????????? | | ????# #???????????# #??????????????????????? | | ????# #???????????# ###############????????? | | ????# #???????????" #????????? | | ????# #???????????# #????????? | | ????# #???????????# * #????????? | | ????# #???????????+!% #????????? | | ????# ###?????????##+##""# ####+########???? | | ????# T"#?????????#![%=%*"[[ # #???? | | ????# ""#?????????# ""=[%=%= # #???? | | ????#### ###??????#### "" !%"%%= + #???? | | ???????# #????????#"" "" *% !% # """ """ #???? | | ???????# #????????#"" ![%=![ # """ """ #???? | | ???????# #????????#""" !!= %=# """ """ #???? | | ???????# #????????#"S [!*" ==/#! #???? | | ???????# #????????#"" "" =g# !%%#############???? | | ???????# #????????#"" "" # /%%########????????? | | ???????# #????????#### " # =^= #????????? | | ???????# #???????????# "" # * #????????? | | ???????# #???????????# "" g# !== ######???? | | ???????# #????#####??# # !== ???? | | ???????# #????#hhh#??####";;#gg !== ???? | | ???????# #????# #????## # xi [%%[= ????? | | ???????# ###### ######;#;##gg m!%%%! ?????? | | ???????# %pgg gpx g%==[= ########## | | ???????+ m m@lhKgglm### # | | ???????# ^ g g ![[ g #?# # """"""" | | ???????# gg %YYYE #?#p # """"""" | | ???????#### ######+########;##m##### # """"""" | | ??????????# #???? ??????# Y %* # # | | ??????????# #???? ??????# c [# ###+###### | | ??????????# #??? ?????# %+[ | | ??????????# #??? """ ?????# " # | | ??????????# #??# """ "????# """ # | | ??????????# #??# """ "????# G # | | ??????????# #??# ???#] """ ###" ########## | | ??????????? #??# ???# " #?#"T#????????? | | ??????????? ???#########??# #?####????????? | | ??????????? ??????????????###"######?????????????? | | ???????????+?????????????????????????????????????? | | ?????????????????????????????????????????????????? | | ?????????????????????????????????????????????????? | | ?????????????????????????????????????????????????? | | ?????????????????????????????????????????????????? | | ?????????????????????????????????????????????????? | | ?????????????????????????????????????????????????? | | ?????????????????????????????????????????????????? | | ?????????????????????????????????????????????????? | | ?????????????????????????????????????????????????? | | ?????????????????????????????????????????????????? | +----------------------------------------------------+ Best States ------------- Heat Dissipation 68 Energy Generation 23 Energy Capacity 340 Matter Stores 300 Matter Capacity 450 Sight Range 16 Terrain Scan Density 10 Corruption Block 15 Armor Coverage 1200 Resistance: EM 25 Evasion (%) 57 Targeting Accuracy 6 Target Analysis 8 Core Analysis 8 Recoil Reduction 4 Offensive Hacking 10 Relay Coupler Types 9 Relay Coupler Value 256 Item Schematics ----------------- None Robot Schematics ------------------ None Fabricated ------------ Nothing Repaired ---------- Nothing Studied --------- None Alien Tech Used ----------------- None Achievements -------------- Beloved Hack The Planet Hornet's Nest Pwned Challenges ------------ None Game ------ Seed TowerActiveTerminator Manual? 0 Play Time 02:58:01 Cumulative 78.4 hours Start 2026.09.19 @ 17:48:23 End 2026.09.20 @ 09:20:57 Sessions 9 Manual Loads 0 Difficulty Rogue Special Mode None Game No. 131 Rogue 131 Adventurer 0 Explorer 0 Win Type - Total 1 Types 1/0/0/0/0/0/0/0/0/0 Lore% 37 Gallery% 40 Achievement% 36 Wizard Run 0 Options --------- Layout 1 ASCII 0 Keyboard 0 Movement Mouse Keybinds 0 Fullscreen 1 Font 16/SmallcapsGlow Map View 50x40 Zoom Use 0% Tactical HUD 1 Map Filters NONE Filters NONE Steam SD RUN: 2aa68ae9-9362-4b61-906b-fe45edcd3f5f